[Event "VIII Open Semana Santa 2024"]
[Site "San Vicente del Raspeig"]
[Date "2024.03.27"]
[Round "1.17"]
[White "Fernandez Guillen, Ernesto J."]
[Black "Martinez Sanchez, Antonio Manuel"]
[Result "1-0"]
[ECO "C15"]
[WhiteElo "2471"]
[BlackElo "2048"]
[Annotator "TA"]
[PlyCount "53"]
[EventDate "2024.03.27"]
[EventType "swiss"]
[EventCountry "ESP"]
[SourceTitle "playchess.com"]
[Source "ChessBase"]
[SourceQuality "1"]
[TimeControl "5400+30"]

{[%evp 14,53,-13,-9,-19,-62,-16,-8,-13,-56,-70,-54,-14,-7,-20,-56,-2,-11,-10,0,22,-14,0,0,0,-22,-23,-31,-22,-28,22,8,25,29,29,23,93,95,205,179,192,158]} 1. e4 {[%emt 0:00:20]} e6 {[%emt 0:00:14]} 2. d4 {[%emt 0:00:54]} d5 {[%emt 0:00:21]} 3. Nc3 {[%emt 0:00:59]} Bb4 {[%emt 0:00:33]} 4. Nge2 {[%emt 0:01:06]} dxe4 {[%emt 0:00:49]} 5. a3 {[%emt 0:00:43]} Bxc3+ {[%emt 0:00:23]} 6. Nxc3 {[%emt 0:00:06]} Nc6 {[%emt 0:00:19]} 7. Bb5 {[%emt 0:00:50]} Nge7 {[%emt 0:00:28]} 8. Be3 {[%emt 0:06:19]} O-O {[%emt 0:01:01]} 9. O-O {[%emt 0:04:34][%cal Od1d2]} a6 {[%emt 0:08:34]} (9... f5 $15) 10. Bxc6 $11 {[%emt 0:03:05]} Nxc6 {[%emt 0:03:59] The position is equal.} 11. Qh5 {[%emt 0:00:33]} f5 {[%emt 0:12:20][%cal Of5f4]} ({Stronger than} 11... Nxd4 12. Rad1 e5 13. Qxe5 $16 (13. Nxe4 Qe8 $11)) 12. Rad1 {[%emt 0:04:28]} Qe8 {[%emt 0:12:14]} 13. Qxe8 {[%emt 0:01:47]} Rxe8 {[%emt 0:00:07]} 14. d5 {[%emt 0:04:28]} Ne7 {[%emt 0:02:40]} (14... Ne5 $15) 15. d6 {[%emt 0:00:45]} cxd6 {[%emt 0:01:44]} 16. Rxd6 {[%emt 0:01:38]} Nd5 {[%emt 0:02:08]} 17. Na4 {[%emt 0:04:17]} Kf7 {[%emt 0:15:02]} 18. c4 {[%emt 0:04:03]} b5 {[%emt 0:07:28] [#] ...Nxe3 would now be deadly.} 19. cxb5 {[%emt 0:05:13]} axb5 {[%emt 0:00:35]} 20. Nb6 {[%emt 0:00:08]} Nxb6 {[%emt 0:00:48]} 21. Rxb6 {[%emt 0:00:03][%cal Of1c1]} Re7 {[%emt 0:05:31]} (21... Rd8 $142) 22. Rc1 {[%emt 0:01:38]} Ba6 {[%emt 0:14:37]} 23. h4 {[%emt 0:01:51][%cal Bh2h4,Bh4h5][%mdl 32]} Rd7 {[%emt 0:02:02]} 24. Rcc6 {[%emt 0:02:02][%csl LRa6,LRe6]} Bb7 {[%emt 0:00:12]} (24... Bc8 $11 {remains equal.}) 25. Rxe6 $16 {[%emt 0:00:24]} g6 {[%emt 0:03:51]} (25... Rd1+ $16 26. Kh2 Bc8) 26. Rf6+ {[%emt 0:01:05]} Kg7 {[%emt 0:00:27]} 27. h5 {[%emt 0:00:13] Weighted Error Value: White=0.14 (very precise) /Black=0.30.  Mistake:       	---       	Black=5      Inaccurate:     	White=4     	Black=1      OK:         	White=6     	Black=3      Best:        	White=4     	Black=1} 1-0

[Event "VIII Open Semana Santa 2024"]
[Site "San Vicente del Raspeig"]
[Date "2024.03.27"]
[Round "1.18"]
[White "Vardakas, Grigorios"]
[Black "Zhu, Jiner"]
[Result "0-1"]
[ECO "D30"]
[WhiteElo "2043"]
[BlackElo "2467"]
[Annotator "TA"]
[PlyCount "66"]
[EventDate "2024.03.27"]
[EventType "swiss"]
[EventCountry "ESP"]
[SourceTitle "playchess.com"]
[Source "ChessBase"]
[SourceQuality "1"]
[TimeControl "5400+30"]

{[%evp 9,66,0,8,-8,-9,-6,-3,-39,-33,-41,-33,-27,-17,-26,-15,-19,-25,-16,0,0,0,-5,0,-19,-16,-47,7,0,62,-146,0,0,3,-7,16,22,83,81,83,85,89,50,81,83,107,19,48,48,39,29,33,8,62,0,0,-29989,-29990,-29997,993]} 1. Nf3 {[%emt 0:01:07]} d5 {[%emt 0:00:13]} 2. d4 {[%emt 0:00:19]} Nf6 {[%emt 0:00:12]} 3. c4 {[%emt 0:02:59]} e6 {[%emt 0:00:09]} 4. e3 {[%emt 0:02:40]} Bd6 {[%emt 0:00:47]} 5. Nc3 {[%emt 0:02:48]} O-O {[%emt 0:00:42]} 6. Qc2 {[%emt 0:07:21]} (6. c5 $5 Be7 $8 7. b4 $14) 6... b6 {[%emt 0:12:56]} 7. cxd5 {[%emt 0:05:58]} exd5 {[%emt 0:00:07]} 8. Bd2 {[%emt 0:01:09] The position is equal.} c5 {[%emt 0:01:29]} 9. Be2 {[%emt 0:10:56]} Bb7 {[%emt 0:02:51]} 10. O-O {[%emt 0:01:46]} Nc6 {[%emt 0:00:06]} 11. dxc5 {[%emt 0:05:28]} bxc5 {[%emt 0:00:06]} 12. Nb5 {[%emt 0:05:07]} Be7 {[%emt 0:00:17]} 13. Rfd1 {[%emt 0:00:47]} a6 {[%emt 0:08:19]} 14. Nc3 {[%emt 0:00:31]} Bd6 {[%emt 0:00:14]} 15. Na4 {[%emt 0:05:21]} Ne4 {[%emt 0:03:51]} 16. Be1 {[%emt 0:02:11][%cal Of3d2]} Re8 {[%emt 0:02:22][%cal Od5d4]} 17. Nd2 {[%emt 0:11:46]} Nb4 {[%emt 0:19:19]} (17... Nxd2 $1 $15 18. Bxd2 Nd4 19. exd4 Rxe2) 18. Qc1 $11 {[%emt 0:04:32] Nxe4 would now be deadly.} Nxd2 {[%emt 0:14:47]} ({Black should try} 18... Qe7 $11) 19. Bxd2 $2 {[%emt 0:09:08]} (19. Nxc5 $1 $14 {was the only good move.} Rc8 20. Nxb7) 19... Qe7 {[%emt 0:00:31] Black is more active.} (19... d4 $1 $17 20. Nxc5 Bxg2 21. Kxg2 (21. Bxb4 $2 Qh4 $19) 21... Qg5+ 22. Kf1 Qf5) 20. Bxb4 $1 {[%emt 0:12:25]} cxb4 {[%emt 0:00:45]} 21. Bf3 {[%emt 0:01:05][%cal Be2f3,Bf3g2,Bg2d5][%mdl 32]} Qe5 {[%emt 0:01:53]} 22. g3 {[%emt 0:00:45]} Qf5 {[%emt 0:00:11]} (22... Rac8 $11 {keeps the balance.} 23. Qb1 Bf8) 23. Bg2 $16 {[%emt 0:01:45]} Rac8 {[%emt 0:08:27]} 24. Qb1 {[%emt 0:00:16]} Qf6 {[%emt 0:01:34]} ({But not} 24... Rc2 $2 25. Rd2 Rec8 26. Nc3 $18) 25. Qd3 {[%emt 0:02:06]} Rcd8 {[%emt 0:07:34]} 26. Rac1 {[%emt 0:01:24]} (26. Bxd5 $2 {loses.} Bxg3 27. hxg3 Rxd5 (27... Bxd5 $2 28. Qf1 $19) 28. Qxd5 Bxd5 29. Rxd5 Qc6 $19) 26... Be5 {[%emt 0:01:09] [#]} 27. b3 {[%emt 0:00:32]} (27. Qb3 $1 $16) 27... Bc8 {[%emt 0:00:32][%cal Bb7c8,Bc8g4,Bg4f3][%mdl 32]} 28. Bxd5 {[%emt 0:01:18]} Bg4 $1 {[%emt 0:00:17]} 29. Rf1 {[%emt 0:00:47]} (29. Rc6 {is interesting.} Qg5 30. Rd2 Bf3 31. Rc5) 29... Bf3 {[%emt 0:01:21] This pair of bishops is nice.} 30. e4 {[%emt 0:00:18]} Rd6 {[%emt 0:00:20]} (30... g5 $11) 31. Nc5 {[%emt 0:00:40]} (31. Rc4 $14) 31... Bc3 $1 $11 {[%emt 0:05:15]} 32. Qc2 $2 {[%emt 0:00:40][%mdl 8192]} (32. a4 $11) 32... Qh6 {[%emt 0:00:51]} 33. Qd3 {[%emt 0:00:29] [#]} Qxh2+ $3 {[%emt 0:00:10][%mdl 33280] Weighted Error Value: White=0.40/Black=0.22 (precise) .  Loses game:     	White=1     	---        Mistake:       	White=3     	Black=5      Inaccurate:     	White=3     	Black=2      OK:         	White=10    	Black=5      Best:        	White=2     	Black=1      Strong:       	White=1     	Black=2     . Loss on time!?} 0-1

[Event "VIII Open Semana Santa 2024"]
[Site "San Vicente del Raspeig"]
[Date "2024.03.27"]
[Round "1.19"]
[White "Diaz Perez, Michel Alejandro"]
[Black "Andreev, Stanislav"]
[Result "1-0"]
[ECO "B14"]
[WhiteElo "2464"]
[BlackElo "2041"]
[Annotator "TA"]
[PlyCount "97"]
[EventDate "2024.03.27"]
[EventType "swiss"]
[EventCountry "ESP"]
[SourceTitle "playchess.com"]
[Source "ChessBase"]
[SourceQuality "1"]
[TimeControl "5400+30"]

{[%evp 11,97,10,35,8,80,72,75,58,78,74,55,71,75,74,70,20,24,34,26,0,2,8,49,50,47,45,55,50,41,42,53,39,130,71,105,91,105,50,66,10,0,-5,-5,-7,-7,-7,-7,-6,0,0,0,0,0,0,15,0,9,13,20,0,37,0,0,0,0,0,0,0,0,0,111,115,105,125,296,317,304,266,495,468,1163,1000,1382,1156,29980,29980,29985,29987]} 1. d4 {[%emt 0:00:12]} Nf6 {[%emt 0:00:20]} 2. c4 {[%emt 0:00:05]} c5 {[%emt 0:00:46]} 3. e3 {[%emt 0:00:25]} cxd4 {[%emt 0:00:36]} 4. exd4 {[%emt 0:00:01]} d5 {[%emt 0:00:47]} 5. Nc3 {[%emt 0:00:04]} g6 {[%emt 0:01:27]} 6. cxd5 {[%emt 0:00:24]} Bg7 {[%emt 0:00:34]} 7. Qb3 {[%emt 0:01:14]} Qb6 {[%emt 0:01:08]} (7... O-O $11) 8. Qxb6 {[%emt 0:05:18]} axb6 {[%emt 0:00:05]} 9. Nf3 {[%emt 0:00:18] Weiß steht besser.} O-O {[%emt 0:01:30]} 10. Bc4 {[%emt 0:00:27]} Na6 {[%emt 0:02:15]} 11. O-O {[%emt 0:01:32]} Nb4 {[%emt 0:03:06]} 12. Bf4 {[%emt 0:05:39]} b5 {[%emt 0:01:58]} 13. Bxb5 {[%emt 0:12:16]} (13. Bb3 $14) 13... Nfxd5 $11 {[%emt 0:03:00]} 14. Nxd5 {[%emt 0:00:41]} Nxd5 {[%emt 0:00:06]} 15. Be5 {[%emt 0:00:36]} Bh6 {[%emt 0:02:02]} 16. Bc4 {[%emt 0:09:38]} Nb6 {[%emt 0:02:47]} 17. Bb3 {[%emt 0:00:42]} Na4 {[%emt 0:08:36]} 18. d5 {[%emt 0:04:20]} Bg4 {[%emt 0:01:28]} 19. Rfe1 {[%emt 0:04:41]} Nc5 {[%emt 0:03:18]} 20. Bc4 {[%emt 0:01:59]} Bxf3 {[%emt 0:01:11]} 21. gxf3 {[%emt 0:00:03][%cal Bg2f3,Bf3f4][%mdl 32]} Nd7 {[%emt 0:05:00]} (21... Rfc8 $14) 22. Bc3 {[%emt 0:04:47] Das Läuferpaar ist gut.} (22. Bd4 $142 Bg5 23. f4) 22... Bg5 {[%emt 0:00:07] [#]} 23. f4 $1 {[%emt 0:01:57][%mdl 512] Weiß steht aktiver.} Bh4 {[%emt 0:02:14]} 24. Kg2 {[%emt 0:00:33]} (24. Rad1 $16) 24... Rfc8 $14 {[%emt 0:02:31]} 25. Bb5 {[%emt 0:06:28]} (25. Bb3 $14) 25... Nb6 $11 {[%emt 0:00:47]} 26. Red1 {[%emt 0:04:42]} Rc5 {[%emt 0:00:53][%csl LRb5,LRd5]} 27. a4 {[%emt 0:06:18]} Nxd5 {[%emt 0:02:23]} 28. Be5 {[%emt 0:00:09]} e6 {[%emt 0:01:32]} 29. Rac1 {[%emt 0:02:09]} Rac8 {[%emt 0:00:53]} 30. Rxc5 {[%emt 0:01:18]} Rxc5 {[%emt 0:00:06]} 31. Kf3 {[%emt 0:00:30]} Rc2 {[%emt 0:02:34]} 32. Bd4 {[%emt 0:01:00]} Be7 {[%emt 0:03:33]} 33. Bd3 {[%emt 0:01:32]} Rc8 {[%emt 0:01:36]} 34. Be4 {[%emt 0:00:22]} Rd8 {[%emt 0:01:50]} 35. Be5 {[%emt 0:01:19][%cal Of4f5]} f5 {[%emt 0:01:24]} 36. Bb1 {[%emt 0:03:10]} Kf7 {[%emt 0:02:31]} 37. Ba2 {[%emt 0:04:01]} Nb4 {[%emt 0:05:00]} 38. Rxd8 {[%emt 0:00:12]} Bxd8 {[%emt 0:00:05][%mdl 4096] Endspiel. KBB-KBN} 39. Bc4 {[%emt 0:00:10]} Nc6 {[%emt 0:01:19]} 40. Bc3 {[%emt 0:02:39]} Bf6 {[%emt 0:01:01]} (40... Be7 $11 {hält das Gleichgewicht.}) 41. Bxf6 $16 {[%emt 0:00:58]} Kxf6 {[%emt 0:01:03] KB-KN} 42. Ke3 {[%emt 0:00:01]} e5 $2 {[%emt 0:02:44] [#] Führt Schwarz ins Verderben.} (42... h6 $16 {war angesagt.}) 43. Bd5 $1 $18 {[%emt 0:01:02] Bxc6 wäre nun fies.} exf4+ {[%emt 0:00:30]} 44. Kxf4 {[%emt 0:00:06] Droht Bxc6 und aus.} g5+ $2 {[%emt 0:01:25]} (44... Nb4 45. Bxb7 Nd3+ 46. Kg3 Ke6) 45. Ke3 {[%emt 0:01:27] Und Bxc6 würde nun gewinnen.} Ne5 {[%emt 0:05:28]} (45... Nd8 $142 46. Kd4 f4) 46. Bxb7 {[%emt 0:00:53]} Nc4+ {[%emt 0:00:09]} 47. Kd4 {[%emt 0:00:09]} Nxb2 {[%emt 0:00:09]} 48. a5 {[%emt 0:00:02]} Na4 {[%emt 0:00:14]} 49. Bc6 {[%emt 0:00:11] Gewichteter Fehlerwert: Weiß=0.11 (sehr präzise) /Schwarz=0.36.  Verlustzug:     	---       	Schwarz=1     Fehler:       	Weiß=4     	Schwarz=5     Ungenau:       	Weiß=1     	Schwarz=4     OK:         	Weiß=20    	Schwarz=16    Bester:       	Weiß=4     	Schwarz=2     Stark:        	Weiß=1     	---} 1-0

[Event "VIII Open Semana Santa 2024"]
[Site "San Vicente del Raspeig"]
[Date "2024.03.27"]
[Round "1.20"]
[White "Climente Martinez, Jose Luis"]
[Black "Baskin, Robert"]
[Result "0-1"]
[ECO "A40"]
[WhiteElo "2041"]
[BlackElo "2461"]
[Annotator "TA"]
[PlyCount "90"]
[EventDate "2024.03.27"]
[EventType "swiss"]
[EventCountry "ESP"]
[SourceTitle "playchess.com"]
[Source "ChessBase"]
[SourceQuality "1"]
[TimeControl "5400+30"]

{[%evp 9,90,0,27,20,17,16,27,19,29,23,18,21,25,22,35,22,36,23,28,20,46,0,0,0,0,0,0,-14,-14,-14,-14,-14,-6,-18,-14,-15,-12,-26,-28,-40,-23,-37,0,-43,-28,-41,-24,-35,-31,-29,-29,-29,-30,-63,-29,-33,-29,-29,-17,-37,-22,-66,-40,-58,-42,-65,-22,-112,-104,-195,-156,-200,-215,-341,-328,-305,-304,-1271,-1208,-29960,-5606,-5573,-5569]} 1. d4 {[%emt 0:00:08]} e6 {[%emt 0:00:15]} 2. c4 {[%emt 0:00:40]} b6 {[%emt 0:00:15]} 3. Nf3 {[%emt 0:00:52]} Bb7 {[%emt 0:03:30]} 4. Nc3 {[%emt 0:00:43]} Bb4 {[%emt 0:00:36]} 5. Bd2 {[%emt 0:01:09]} f5 {[%emt 0:07:30]} 6. e3 {[%emt 0:03:07]} Nf6 {[%emt 1:21:24]} 7. Bd3 {[%emt 0:02:20]} O-O {[%emt 0:02:14]} 8. O-O {[%emt 0:02:38] White has an edge.} Bxc3 {[%emt 0:00:55]} 9. Bxc3 {[%emt 0:00:24]} Ne4 {[%emt 0:00:06]} 10. Be1 {[%emt 0:00:24]} d6 {[%emt 0:01:59]} 11. Qc2 {[%emt 0:01:14]} Nd7 {[%emt 0:01:44]} 12. Nd2 {[%emt 1:22:51]} Nxd2 {[%emt 0:01:40]} 13. Bxd2 {[%emt 0:02:14]} Qh4 {[%emt 0:00:52][%cal Ob7g2] [#] Hoping for ...Bxg2!} 14. f3 {[%emt 0:08:05]} a5 {[%emt 1:14:58]} 15. e4 (15. Rae1 $14 {is more appropriate.}) 15... fxe4 {[%emt 0:04:14]} 16. fxe4 {[%emt 0:05:43]} e5 {[%emt 0:06:53]} 17. d5 {[%emt 0:18:32]} Nc5 {[%emt 0:02:16]} 18. a3 {[%emt 0:04:23]} a4 {[%emt 0:02:09]} 19. Be3 {[%emt 0:04:25]} Nxd3 20. Qxd3 {[%emt 0:00:10]} Rad8 {[%emt 0:13:58]} 21. Rae1 {[%emt 0:06:17]} Bc8 {[%emt 0:01:55]} 22. Bf2 {[%emt 0:05:37]} Qh5 {[%emt 0:01:33]} 23. Qc2 {[%emt 0:03:40]} Bd7 {[%emt 0:00:54]} 24. Qd1 {[%emt 0:05:49]} Bg4 {[%emt 0:05:24]} (24... Qxd1 {simplifies} 25. Rxd1 Bg4 26. Rde1 h6) 25. Qc2 {[%emt 0:02:43]} Bd7 {[%emt 0:02:27]} 26. Qd1 {[%emt 0:00:43]} Qg5 {[%emt 0:00:08]} (26... Qxd1 {simplifies} 27. Rxd1 Bg4 28. Rde1 Bh5) 27. Qc1 {[%emt 0:03:06]} Qe7 {[%emt 0:08:19]} (27... Qxc1 {simplifies} 28. Rxc1 h6 29. Be3 Bg4) 28. Be3 {[%emt 0:01:24]} (28. h3 {simplifies} Be8 29. Be3 Rxf1+ 30. Rxf1 Rb8 31. Qe1) 28... h6 {[%emt 0:00:20] Repels Bg5} 29. Qd1 {[%emt 0:00:37]} Qh4 {[%emt 0:01:29]} 30. Bf2 {[%emt 0:00:59]} Qg5 {[%emt 0:00:40]} 31. Qc1 {[%emt 0:01:15]} Qg6 {[%emt 0:03:58] Black is much more active.} (31... Qxc1 {simplifies} 32. Rxc1 Be8 33. Rce1 Bg6) 32. Bh4 {[%emt 0:02:18]} Rde8 {[%emt 0:00:09]} 33. Qe3 {[%emt 0:00:34]} Qg4 $40 {[%emt 0:01:41][%mdl 128] Black mounts an attack.} 34. Bf2 {[%emt 0:01:36]} Rf7 {[%emt 0:03:22]} 35. Qg3 {[%emt 0:05:24]} Qh5 {[%emt 0:00:03]} 36. Qh4 {[%emt 0:00:49]} Qg6 {[%emt 0:00:07] ...Rf4 is the strong threat.} (36... Qxh4 {simplifies} 37. Bxh4 Rxf1+ 38. Kxf1 Rf8+) 37. Qg3 {[%emt 0:00:08]} Qh7 {[%emt 0:00:08]} (37... Bg4 {simplifies} 38. h3 Bh5 39. Qxg6 Bxg6 40. Bh4 Rxf1+ 41. Kxf1 Rf8+) 38. h4 {[%emt 0:01:07]} (38. Qe3 $11) 38... Rf4 $17 {[%emt 0:04:55]} 39. Be3 {[%emt 0:02:42]} (39. Qe3 $17) 39... Rg4 {[%emt 0:02:28]} 40. Qf3 {[%emt 0:00:18]} Qg6 {[%emt 0:00:56] Repels Qf7+} (40... Qxe4 41. Qf7+ Kh7 42. Rf2 $11) 41. Bf2 {[%emt 0:04:57]} (41. h5 {is a better defense.} Qxh5 42. Bd2) 41... Rf8 $19 {[%emt 0:01:31]} 42. Qh3 {[%emt 0:00:01]} h5 {[%emt 0:01:23]} (42... Rxe4 43. Qxd7 Rg4 44. Qe6+ (44. Qxa4 Rxg2+ 45. Kh1 Rfxf2 46. Rxf2 Rxf2) 44... Qxe6 45. dxe6 $16) 43. g3 $2 {[%emt 0:00:41] [#]} (43. Be3 Qxe4 (43... Rxe4 $2 {loses.} 44. Rxf8+ Kxf8 45. Qxd7 $18) 44. Rxf8+ Kxf8 45. Bf2) 43... Rxf2 $1 {[%emt 0:00:27][%mdl 512]} 44. Rxf2 {[%emt 0:00:50]} (44. Kxf2 Rf4+) 44... Rxg3+ {[%emt 0:00:05]} 45. Qg2 {[%emt 0:01:07]} Bh3 {[%emt 0:00:08] Weighted Error Value: White=0.45/Black=0.10 (very precise) .  Mistake:       	White=5     	---        Inaccurate:     	White=3     	Black=4      OK:         	White=10    	Black=13     Brilliant:      	---       	Black=1} 0-1

[Event "VIII Open Semana Santa 2024"]
[Site "San Vicente del Raspeig"]
[Date "2024.03.28"]
[Round "2.1"]
[White "Granero Roca, Antonio"]
[Black "Alekseenko, Kirill"]
[Result "0-1"]
[ECO "E10"]
[WhiteElo "2270"]
[BlackElo "2650"]
[Annotator "TA"]
[PlyCount "100"]
[EventDate "2024.03.27"]
[EventType "swiss"]
[EventCountry "ESP"]
[SourceTitle "playchess.com"]
[Source "ChessBase"]
[SourceQuality "1"]
[TimeControl "5400+30"]

{[%evp 9,100,14,21,16,14,25,25,20,29,16,24,4,13,0,0,0,20,0,21,0,0,-2,0,0,7,7,27,26,27,0,0,0,0,0,0,0,8,6,10,9,14,0,6,0,0,0,0,0,-4,-7,-6,-6,-6,-7,-8,-8,-8,-12,-8,-80,-17,-68,-81,-77,-66,-93,-84,-93,-84,-83,-74,-184,-181,-181,-163,-168,-135,-123,-104,-117,-118,-216,0,-104,0,-234,-232,-227,-229,-272,-244,-482,-278]} 1. d4 {[%emt 0:00:07]} Nf6 {[%emt 0:00:20]} 2. c4 {[%emt 0:00:28]} e6 {[%emt 0:00:05]} 3. Nf3 {[%emt 0:01:58]} h6 {[%emt 0:00:16]} 4. Nc3 {[%emt 0:02:06]} Bb4 {[%emt 0:00:23]} 5. Bd2 {[%emt 0:01:06]} b6 {[%emt 0:03:38]} 6. a3 {[%emt 0:00:53]} Bxc3 {[%emt 0:00:40]} 7. Bxc3 {[%emt 0:00:10]} Ne4 {[%emt 0:00:53] Repels b4} 8. Rc1 {[%emt 0:01:21] White has an edge.} Bb7 {[%emt 0:02:17]} 9. e3 {[%emt 1:26:51]} d6 {[%emt 0:01:27]} 10. Be2 {[%emt 0:00:00]} Nd7 {[%emt 0:05:34]} 11. O-O {[%emt 0:00:00]} Nxc3 {[%emt 0:01:39]} 12. Rxc3 {[%emt 0:00:00]} a5 {[%emt 0:00:41]} 13. b3 {[%emt 0:00:00][%cal Bb2b3,Bb3b4][%mdl 32]} Qe7 {[%emt 0:07:24]} 14. Qb1 {[%emt 0:00:00]} O-O {[%emt 0:02:34]} 15. Rd1 {[%emt 0:00:00]} f5 {[%emt 0:04:08]} 16. b4 {[%emt 0:00:00]} Nf6 {[%emt 0:07:31]} 17. Rcc1 {[%emt 0:00:00]} Qf7 {[%emt 0:17:42] [#]} 18. d5 $1 {[%emt 0:00:00]} exd5 {[%emt 0:01:51]} 19. Qxf5 {[%emt 0:00:00]} axb4 {[%emt 0:01:21]} 20. axb4 {[%emt 0:00:00]} Ra2 {[%emt 0:01:15]} 21. Rd2 {[%emt 0:00:00]} Rxd2 {[%emt 0:14:09]} 22. Nxd2 {[%emt 0:00:00]} Bc8 {[%emt 0:00:10]} 23. Qf4 {[%emt 0:00:00]} dxc4 {[%emt 0:05:31]} 24. Bxc4 {[%emt 0:00:00]} Be6 {[%emt 0:00:16]} (24... d5 $2 25. Bd3 $18) 25. b5 {[%emt 0:00:00]} Ra8 {[%emt 0:01:01]} 26. h3 {[%emt 0:00:00]} Bxc4 {[%emt 0:01:37]} 27. Qxc4 {[%emt 0:00:00]} Qxc4 {[%emt 0:01:18]} 28. Rxc4 $11 {[%emt 0:00:00][%mdl 4096] Endgame. KRN-KRN} Ra1+ {[%emt 0:01:40]} 29. Kh2 {[%emt 0:00:00]} Ra2 {[%emt 0:01:54]} 30. Nf3 {[%emt 0:00:00]} Rxf2 {[%emt 0:00:21] With the idea ...Nd5.} 31. Rxc7 {[%emt 0:00:00]} Nd5 {[%emt 0:00:08][%csl LRc7,LRe3]} 32. Rc8+ {[%emt 0:00:00]} Kf7 {[%emt 0:03:57]} 33. e4 {[%emt 0:00:00]} Ne3 {[%emt 0:00:48]} 34. e5 {[%emt 0:00:00]} (34. Kg3 $11 {keeps the balance.} Rxg2+ 35. Kf4) 34... Rxg2+ $17 {[%emt 0:05:28]} ({Stronger than} 34... Nxg2 35. Kg3 (35. exd6 Ke6 $16) 35... Ra2 36. exd6 $14) 35. Kh1 {[%emt 0:00:00]} Rc2 $1 {[%emt 0:00:28]} 36. Rb8 {[%emt 0:00:00]} (36. Rxc2 Nxc2 37. exd6 Ke6 $19) 36... dxe5 {[%emt 0:00:48]} 37. Nxe5+ {[%emt 0:00:00]} Ke6 {[%emt 0:01:06]} 38. Nf3 {[%emt 0:00:00] Nd4+ is the strong threat.} Rc1+ {[%emt 0:00:08]} 39. Kh2 {[%emt 0:00:02]} Nd5 {[%emt 0:00:38]} 40. Rb7 {[%emt 0:00:20]} (40. Nd4+ $17 Ke5 41. Nc6+ Kd6 42. Rb7) 40... Rc7 $19 {[%emt 0:01:47]} 41. Rb8 {[%emt 0:00:29]} Kd6 {[%emt 0:01:13]} 42. Nd4 {[%emt 0:00:43]} Ra7 {[%emt 0:03:08]} 43. Rc8 {[%emt 0:01:14]} Ra2+ {[%emt 0:00:20]} 44. Kg3 {[%emt 0:00:22]} Ra3+ {[%emt 0:00:03]} 45. Kh2 {[%emt 0:01:18] [#]} (45. Kf2 $17) 45... Ra2+ {[%emt 0:00:18]} (45... Nf4 $1 $19 46. h4 Kd5 47. Rd8+ Ke4) 46. Kg3 $17 {[%emt 0:00:06]} Ra3+ {[%emt 0:00:06]} (46... Ke5 $17 47. Nf3+ Ke4 48. Rc4+ Ke3) 47. Kh2 $1 $19 {[%emt 0:00:05] [#]} Nf4 $1 {[%emt 0:01:27]} 48. h4 {[%emt 0:02:27]} Kd5 {[%emt 0:00:30]} 49. Nf5 {[%emt 0:01:03]} Ke4 {[%emt 0:00:40]} 50. Nxg7 {[%emt 0:01:50]} (50. Nd6+ Kf3 51. Rc2) 50... Rh3+ {[%emt 0:00:04] Weighted Error Value: White=0.19 (very precise) /Black=0.10 (very precise) .  Mistake:       	White=4     	Black=2      Inaccurate:     	White=3     	---        OK:         	White=17    	Black=24     Best:        	White=4     	Black=2      Strong:       	White=1     	Black=1} 0-1